[Event "EU-ch 12th"]
[Site "Aix les Bains"]
[Date "2011.03.31"]
[Round "9"]
[White "Gharamian, Tigran"]
[Black "Jobava, Baadur"]
[Result "0-1"]
[ECO "B42"]
[WhiteElo "2650"]
[BlackElo "2707"]
[Annotator "Marchand,A/Primel,D"]
[PlyCount "52"]
[EventDate "2011.03.22"]
[EventType "swiss"]
[EventRounds "11"]
[EventCountry "FRA"]
[SourceTitle "CBM 142 Extra"]
[Source "ChessBase"]
[SourceDate "2011.06.27"]
[SourceVersion "1"]
[SourceVersionDate "2011.06.27"]
[SourceQuality "1"]
[TimeControl "40/5400+30:1800+30"]

1. e4 c5 2. Nf3 e6 3. d4 cxd4 4. Nxd4 a6 5. Bd3 Nf6 6. O-O e5 $5 {[%csl Rd3]
Une ligne secondaire qui est devenue а la mode récemment et malgré un tempo
perdu en jouant e5 en deux coups, les Noirs ont un bon jeu.} 7. Nb3 {78} (7.
Nf3 Nc6 8. Bg5 Bc5 9. Nc3 h6 10. Bxf6 Qxf6 11. Nd5 Qd8 12. c3 d6 13. b4 Ba7 14.
Bc4 O-O 15. Qd3 Be6 16. Bb3 Rc8 17. Rfd1 Qd7 18. Nh4 Ne7 19. Rac1 Nxd5 20. Bxd5
g6 21. Rc2 Kh7 {Motylev,A (2677)-Pantsulaia,L (2595)/Aix les Bains 2011/
Mega2011 Update 15/1/2-1/2}) (7. Bg5 $5 {[%csl Gd5]} d6 (7... h6 8. Bxf6 {
Caruana,F (2727)-Nakamura,H (2758) Reggio Emilia 54th 2011 (7) 1/2}) 8. Nf5) (
7. Nf5 d5 $1 {[%cal Gc8f5,Ge5e4]}) (7. Ne2 {[%csl Re2]} Bc5 (7... d5 8. exd5
Nxd5) 8. Bg5 d6 {Groselj,P (2091)-Romanishin,O (2572) Nova Gorica op 04th 1999
(1) 1/2}) 7... Nc6 8. Nc3 {65} d6 9. Bg5 Be7 10. Qd2 {57} O-O 11. Rfd1 (11.
Rad1 Be6 12. f4 {[%cal Gf4f5]} Ng4 {[%cal Gd8b6]} (12... exf4 13. Bxf4 Ne5) 13.
Nd5) (11. Bc4 Be6 12. Bxe6 fxe6 $132 {[%csl Gd6,Ge6]}) 11... Be6 12. Be2 {
[%cal Gd2d6]} a5 $1 {Un sacrifice de P trés fort} (12... b5 13. Bxf6 Bxf6 14.
Qxd6 Qxd6 15. Rxd6 Nb4 {[%csl Rc2]} 16. Rc1 Be7 (16... Rfd8 17. Rxd8+ Rxd8 18.
Nc5 Bc8) 17. Rb6 Bd8 18. Rd6 Be7 19. Rdd1 Rac8 $44) 13. Bxf6 (13. a4 {Stoppe
l'attaque noire a5a4 mais sans résoudre les problèmes des Noirs} Nb4 $132 {
[%csl Rc2,Gd5]} 14. f3 $2 (14. Nb5 $2 Nxe4) (14. Rac1 d5 $36) 14... Nxc2 15.
Qxc2 Qb6+) (13. Bb5 $5 {[%csl Ga4]}) 13... Bxf6 14. Qxd6 Qxd6 (14... Qb6 $6 {
[%cal Gf8d8]} 15. Na4) 15. Rxd6 Be7 16. Rdd1 a4 $1 17. Nd2 Nd4 $36 {[%csl Rc2,
Gd4,Re2][%cal Ga4a3]} 18. Nf3 $6 (18. Bd3 $142 Rfc8 {[%cal Gc8c3,Ga4a3]} 19. a3
$1 {Les Noirs ont des compensations mais la position Blanche reste solide})
18... Rfc8 $1 {[%cal Ga4a3,Gc8c3]} 19. Bd3 (19. Nxe5 Rxc3 $1 20. bxc3 Nxe2+) (
19. Nxd4 exd4 20. Nd5 (20. Rxd4 a3 $40) 20... Bxd5 21. exd5 Rxc2) 19... a3 $40
20. Nd5 Bxd5 21. exd5 axb2 22. Rab1 e4 $1 {Une dernière pointe} 23. Nxd4 (23.
Bxe4 Ne2+ 24. Kf1 Nc3) 23... exd3 24. Rxb2 Ba3 25. Rdb1 Bxb2 26. Rxb2 Ra4 0-1

[Event "EU-ch 12th"]
[Site "Aix les Bains"]
[Date "2011.03.30"]
[Round "8"]
[White "Stefansson, Hannes"]
[Black "Smirin, Ilia"]
[Result "0-1"]
[ECO "B42"]
[WhiteElo "2557"]
[BlackElo "2658"]
[Annotator "Marchand,A/Primel,D"]
[PlyCount "74"]
[EventDate "2011.03.22"]
[EventType "swiss"]
[EventRounds "11"]
[EventCountry "FRA"]
[SourceTitle "CBM 142 Extra"]
[Source "ChessBase"]
[SourceDate "2011.06.27"]
[SourceVersion "1"]
[SourceVersionDate "2011.06.27"]
[SourceQuality "1"]
[TimeControl "40/5400+30:1800+30"]

1. e4 c5 2. Nf3 e6 3. d4 cxd4 4. Nxd4 a6 5. Bd3 Bc5 (5... Nf6) (5... Qc7) 6.
Nb3 Be7 (6... Ba7 7. Nc3 (7. O-O) 7... Nc6 8. Qe2 d6 9. Be3 Nf6 10. O-O b5 11.
Bxa7 (11. a4 b4 12. Nd1 O-O 13. Bxa7 Rxa7 14. Ne3 d5 15. exd5 exd5 {Matsenko,S
(2367)-Smirnov,I (2450) Pardubice op-A 2006 (8) 1/2}) 11... Rxa7 12. f4 b4 13.
Nd1 e5 14. Ne3 Qb6 15. Kh1 exf4 16. Rxf4 Be6 $11) 7. Be3 (7. Qg4 {La ligne
critique pour affaiblir les cases noires} g6 8. Qe2 d6) (7. O-O d6 8. Nc3 Nf6
9. f4 Qc7 10. a4 Nc6 11. a5 b5 12. axb6 Qxb6+ 13. Kh1 O-O 14. Qf3 Nb4 15. Be3
Qc7 16. e5 Bb7 17. Qh3 dxe5 18. fxe5 Qxe5 19. Ra5 Nxd3 {Timman,J (2650)
-Kurajica,B (2530) Reggio Emilia 8485 27th 1984 (8) 1-0} (19... Qd6 {Huebner}))
(7. c4 d6 8. O-O Nf6 9. Nc3 b6 (9... Nbd7) 10. Be3 (10. f4 Nbd7 11. Qf3 (11.
Qe2 Qc7 12. Bd2 Bb7 13. Rae1 O-O (13... Rd8 {[%cal Gd8d3]}) 14. Kh1 (14. e5 Ne8
15. Kh1 Rd8 {[%cal Gd8d3]} 16. Bb1 g6 17. Be4 Bxe4 18. Nxe4 dxe5 19. fxe5 Nxe5
20. Bf4 f6 21. c5 $44 {Matsuura,E (2490)-Dias,A (2203) Curitiba op 2010 (6) 1/2
}) 14... g6 15. Nd4 Rfe8 $1 {[%cal Ge8e2,Ge7f8]} 16. Nf3 {[%cal Ge4e5]} Rad8
17. Ng5 Bf8 18. Qf2 Bg7 19. b4 Nh5 20. Rc1 Rc8 21. a3 Qd8 22. Nf3 Rc7 {[%csl
Re4][%cal Gd8a8]} 23. Rfe1 Nhf6 24. Qh4 Qa8 25. Qh3 Rec8 26. e5 dxe5 27. Nxe5 (
27. fxe5) 27... Nxe5 28. fxe5 Nd7 29. Bf4 Rxc4 $44 {Naiditsch,A (2574)-Svidler,
P (2727) Dortmund Gr-A 2004 (5) 0-1}) (11. a4 Bb7 (11... Rb8 $5 {[%cal Gb8b2]})
(11... Qc7 12. a5 Rb8 $132 {De Filomeno,S (2293)-Fedorchuk,S (2635) Cesenatico
op 15th 2011 (2) 0-1}) 12. a5) 11... Bb7 12. Bd2 $1 (12. Be3 O-O (12... h5 $5 {
Une idée assez risquée du GMI AGREST} 13. Rad1 (13. Rae1 Qc7 14. Kh1 Ng4 15.
Bg1 g5 16. f5 (16. fxg5 Nde5 $44) 16... Nge5) 13... Qc7 14. h3 h4 15. Nd2 g5 $5
16. fxg5 Nc5 {Probablement une erreur de saisie et c'est Ne5 qui a du être joué
} (16... Ne5 17. Qf2 {[%cal Gf2f7,Ge3b6]} Nxd3 (17... Nh5 18. Bxb6)) 17. Qf2
Nxd3 $13 {Wohl,A (2401)-Agrest,E (2591) Metz op 21st 2003 (3) 0-1}) 13. Qh3 Re8
14. Rad1 Qc7 15. g4 $1 g6 {Kovanova,B (2385)-Koneru,H (2622) Nalchik FIDE GP 
(Women) 2010 (4) 1/2} (15... Nf8 16. g5 N6d7 17. Rf2)) 12... O-O 13. Rae1 {
[%cal Ge4e5]} Qc7 14. Qh3 g6 15. f5 exf5 16. exf5 Ne5 17. Bh6 Rfe8 18. Bg5 Nfg4
19. Bxe7 Qxe7 20. Be4 (20. Nd5 Bxd5 21. cxd5 b5) 20... b5 $5 (20... Bxe4 21.
Nxe4 h5 $6 {Medvegy,N (2368)-Gara,A (2365) HUN-ch (Women) 50th 2002 (4) 1/2} (
21... Rac8 $142 {[%cal Gc8c4,Gb6b5]})) 21. cxb5 axb5 22. Nxb5 Bxe4 23. Rxe4
Rxa2 $132 {[%csl Ge5,Gg4]}) 10... Bb7 11. f4 Nbd7 12. Qf3 O-O 13. Qh3 {[%cal
Gh3h7,Ge4e5,Gd3h7]} Re8 14. Rad1 (14. Rae1 Bf8 15. Bd4 e5 16. Be3 exf4 17. Bxf4
Ne5 {[%csl Ge5]} 18. Nd5 Nfd7 19. Qg3 Nxd3 20. Qxd3 Ne5 21. Qd4 b5 $1 $11 {
Widmer,S (2217)-Gallagher,J (2520) SUI-ch 103rd 2003 (2) 0-1})) (7. a4 b6) 7...
Nf6 (7... d6 8. N1d2 Nf6 9. f4 Nc6) 8. f4 {[%cal Ge4e5]} d6 9. N1d2 {Un coup
trés souple imaginé par Anand} (9. Nc3 Qc7 10. O-O Nc6) (9. Qf3) 9... Nc6 (9...
Qc7) 10. c3 (10. Qe2 Qc7 11. O-O-O $32 {Sherbakov,R (2543)-Ivanov,V (2509)
Moscow Aeroflot op-B 2006 (3) 1/2} (11. O-O O-O) (11. Nc4 {[%cal Ge3b6]} Nd7
12. O-O O-O 13. a4 $14 (13. Qf2))) 10... O-O {le coup c3 semble indiquer que
les Blancs ont renoncé а jouer le ooo mais les Noirs vont avoir une surprise} (
10... e5 11. f5 d5 $1 12. Qf3 g6 13. g4 (13. exd5 Nxd5 14. fxg6 (14. Bh6 gxf5
15. Bxf5 Bxf5 16. Qxf5 Qc8 17. O-O Qxf5 18. Rxf5 Rg8 19. Nc4 $11 {Rjanova,V 
(2027)-Badmatsyrenov,O (2330) RUS-ch Students 2009 (2) 0-1}) 14... hxg6 {
Ritscher,J (2295)-Siebrecht,S (2433) Hamburg-ch int 12th 2009 (5) 0-1}) 13...
d4 14. cxd4 exd4 (14... h5 $5) 15. Bf4 {Sanchez,J (2491)-Horvath,C (2522)
Bratto op 29th 2009 (5) 0-1}) 11. Qf3 (11. O-O) 11... b5 12. g4 $5 $146 {
Lance la course de vitesse mais c'est risqué car le coup c3 donne de la prise
а l'attaque de minorité} (12. O-O-O Bb7 (12... b4 $5 {[%csl Rc1]}) 13. Qh3 e5
14. a3 Qc7 15. Kb1 Rad8 16. f5 d5 {1/2-1/2 Quesada Perez,Y (2582)-Potkin,V 
(2634)/Havana 2010}) (12. f5) 12... Nd7 13. O-O-O $13 {[%csl Rc1]} b4 $1 (13...
e5 $5) 14. c4 $6 (14. e5 {[%cal Gf3c6]} d5 15. c4 $1) 14... Bb7 $132 15. Qh3 $6
{[%csl Rh7][%cal Ge4e5,Gd3h7] Les Noirs vont facilement parer la menace h7 et
la Qh3 sera ensutie mal placée en bloquant notamment l'avancée du P"h"} g6 {
[%csl Rh3]} (15... e5 {[%csl Rd3][%cal Gc6e5] Logique après les Blancs aient
joué Qh3 et les blancs ne peuvent pas jouer Nc3d5}) 16. g5 (16. e5 {Un moindre
mal} dxe5 17. f5 $44 a5 18. fxg6 hxg6 19. Qh6 {[%cal Gd3g6]}) 16... a5 $1 {
[%csl Rb3] L'attaque noire est plus rapide} 17. Kb1 a4 $40 18. Nc1 Nc5 19. Rhg1
d5 20. Rg3 $6 {[%csl Rg3,Rh3] Les pièces Blanches commencent а être très mal
placées} Nxd3 (20... d4) 21. Nxd3 Re8 22. Bc5 h5 $1 23. Qf1 {Reconnaissant que
la Qh3 était mal placée} (23. gxh6 Kh7 (23... dxc4 24. Nxc4 Bxc5 25. Qh5 {
[%cal Gg3g6]} Bd4 (25... Kh7 26. Qxc5) 26. Rxg6+ fxg6 27. Qxg6+ Kh8) 24. f5)
23... Ba6 24. Rc1 Rc8 25. cxd5 (25. Bxe7) 25... exd5 26. Qd1 b3 27. axb3 axb3
28. Qxb3 Bxc5 29. Nxc5 Nd4 30. Qa4 $2 (30. Qxd5 $13) 30... Ne2 31. Qxa6 Nxc1
32. Rc3 Ra8 33. Qb7 Ne2 34. Re3 Nxf4 35. Nd7 Qxg5 36. Nf3 Qe7 37. Qc6 Rec8 0-1

[Event "EU-ch 12th"]
[Site "Aix les Bains"]
[Date "2011.03.27"]
[Round "6"]
[White "Guliyev, Namig"]
[Black "Akopian, Vladimir Eduardovic"]
[Result "0-1"]
[ECO "B42"]
[WhiteElo "2522"]
[BlackElo "2675"]
[Annotator "Marchand,A/Primel,D"]
[PlyCount "144"]
[EventDate "2011.03.22"]
[EventType "swiss"]
[EventRounds "11"]
[EventCountry "FRA"]
[SourceTitle "CBM 142 Extra"]
[Source "ChessBase"]
[SourceDate "2011.06.27"]
[SourceVersion "1"]
[SourceVersionDate "2011.06.27"]
[SourceQuality "1"]
[TimeControl "40/5400+30:1800+30"]

1. e4 c5 2. Nf3 e6 3. d4 cxd4 4. Nxd4 a6 5. Bd3 Nf6 (5... Bc5) 6. O-O Qc7 7.
Qe2 $1 {[%cal Ge4e5]} d6 8. c4 (8. f4 Nbd7 9. Kh1 Be7 10. c4 Nc5 11. Bc2 e5 12.
Nf5 Bxf5 13. exf5 Ncd7) 8... g6 (8... Nbd7 {Plus passif} 9. f4 Be7 10. Nc3 O-O
11. Kh1 b6 12. Bd2 {[%cal Ga1e1,Ge4e5]} Bb7 13. Rae1 Rfd8 (13... g6 14. f5 exf5
$1 15. exf5 Rfe8 $13 {[%cal Ge8e2]}) 14. Nf3 {[%cal Ge4e5]} (14. Bb1 {Sokolov,
A (2596) -Rouler,C (2314)/FRA Cup 8eme 2008/1-0})) 9. Nc3 Bg7 10. Nf3 (10. Rd1
O-O 11. Nf3 (11. Be3 $143 Nc6 12. Rac1 Ne5 13. f3 Bd7 14. Nc2 Rfc8 15. Na3 Be8
16. Qf2 Nxd3 17. Rxd3 b5 $1 18. cxb5 axb5 19. Nc2 (19. Ncxb5 $2 Qxc1+ 20. Bxc1
Rxc1+) 19... Qb8 $15 {Koleda-Markauss,J Latvia Cht-7 1976-77 0-1})) 10... O-O
11. Bf4 {[%csl Rd6] Visant le point faible de la variante pour les Noirs} (11.
Rd1 {la grande ligne} Nc6 12. h3 Nd7 13. Bf4 Nde5 (13... Bxc3 $5 {J'ai été un
des premiers selon les bases а tenter cette ligne secondaire de lutte sur les
cases noires et l'idée est assez proche de celle de la partie} 14. bxc3 e5 15.
Bh6 Rd8 (15... Re8 $142 16. Nh2 Nc5 {[%csl Gc5][%cal Gc5e6]} 17. Bc2 f6 $132
18. Qf3 Qe7 19. Nf1 {[%emt 0:33:30] Todorovic,G (2453)-Caruana, F (2680)/EU-ch
11th Rijeka (1)/0-1} (19. Ng4 $5 Bxg4 20. Qxg4 Na5 {[%csl Rc4]} 21. Qe2 Rac8 {
[%cal Gc5e6]} 22. Rd5 $14 {[%cal Ga1d1]})) 16. Nh2 $1 {[%csl Rf6][%cal Gh2g4]}
Nc5 $8 (16... f6 $2 {Une erreur grossière dans l'ordre de coups} 17. Ng4 $40 {
[%csl Rf6] ;Apicella,M (2522)-Primel,D (2153)/ 18 ème tournoi d'Avoine 2003/1-0
}) 17. Ng4 (17. Bc2 f6 $11 {[%emt 0:33:20] Kotronias,V (2539) -Johannessen,L 
(2422)/Istanbul ol (Men) (7.1)/1-0}) 17... Qe7)) (11. h3) 11... Nh5 $5 {
[%cal Gh5f4,Gg7c3]} (11... Nc6 12. Rfd1 e5 $1 13. Be3 Bg4 {[%cal Gc6d4]} 14. h3
Nd4 15. Bxd4 exd4 16. Nd5 Nxd5 17. cxd5 Bd7 $132 {[%csl Gd7,Gg7]}) 12. Be3 $5 (
{RR} 12. Bg5 Bxc3 13. bxc3 e5 14. Nh4 Nc6 15. g3 Bh3 16. Rfd1 Ng7 17. f4 Bd7
18. f5 f6 19. Bh6 Ne7 20. g4 Kh8 21. Ng2 Rf7 22. Ne3 Qc5 23. Qf2 Ng8 24. Bxg7+
Rxg7 25. Be2 Rd8 26. a4 Bc6 {Shirov,A (2726) -Ivanchuk,V (2786)/ Motril 2008/
CBM 127/1/2-1/2 (49)}) (12. Bd2 {[%cal Gd2c3] Plus solide mais aussi moins
ambitieux} Nd7 13. Rac1 b6 14. Bg5 h6 15. Be3 Bb7 16. Qd2 Kh7 17. Rfd1 Rad8 18.
Bb1 Ne5 19. Nxe5 dxe5 20. Qc2 f5 21. Qb3 Rd4 22. Ne2 fxe4 23. Nxd4 exd4 24.
Bxd4 Nf4 25. Qe3 Nxg2 26. Kxg2 Rf3 {Alekseev,E (2691)-Akopian,V (2691)/Khanty
Mansiysk 2010/CBM 139/1/2-1/2 (69)}) 12... Bxc3 $5 {Par rapport а la grande
ligne Rd1 et Bf4, ce coup est plus risqué car les Noirs ne gagnent pas un
tempo sur le Bf4 avec la poussée e6e5} (12... f5 $6 13. exf5 gxf5 14. Na4 {
[%csl Rb6]} (14. Ng5) 14... Nd7 15. Ng5 {[%csl Re6,Rh5]}) 13. bxc3 e5 $1 {
[%csl Rd3] Le thème de l'échange Bc3 et les Noirs vont compenser la paire de B
avec une structure sur cases noires.} 14. Bh6 $146 ({RR} 14. Rab1 Nd7 15. Ne1
Nc5 16. Nc2 Nf4 17. Bxf4 exf4 18. Rfd1 Qe7 19. Nb4 Qe5 20. Bc2 Be6 21. Rd4 Rac8
22. Qf3 Rfe8 23. Nd3 Nxd3 24. Qxd3 Rc7 25. Rd1 Rec8 26. Bb3 b5 27. cxb5 Rxc3
28. Qe2 Rc1 {Ibarra Chami,L (2387)-Iturrizaga Bonelli,E (2555)/Balaguer 2009/
CBM 131 Extra/0-1 (72)}) 14... Re8 15. Qe3 $6 {[%csl Gf4] Les Blancs
espéraient surcontroler la case "f4" mais les Noirs ont des ressources
tactiques et Qe3 est probablement une perte de temps et au surplus, la Q ne
défend plus la faiblesse "c4"} (15. h3 {[%cal Gf3h2,Gh2g4]} Nd7 (15... Nf4) 16.
Rfd1 Nc5 17. Bc2 $11 Be6 18. Nh2 Rac8 (18... b5 $5 19. cxb5 axb5 20. Qxb5 Reb8
21. Qe2 Rb2 $36 {[%csl Ra2,Gb2,Rc2][%cal Ga8a2]}) 19. Ng4) (15. Rfd1 $142 Nd7 {
[%cal Gd7c5]} 16. Rab1 Nc5 (16... Nf4 17. Bxf4 exf4 18. Qd2 $14 {[%cal Gd2f4,
Gd2d6,Gd3c2]}) 17. Bc2 Be6 {[%cal Ga8c8,Gc8c4]} 18. Be3 (18. Ng5 Nf4) 18... f6
$11 {[%csl Gg5]}) 15... Nd7 {[%cal Gd7c5]} 16. Nd2 {[%cal Gd2c4] Anticipant la
défense de la faiblesse "c4" mais l'inconvénient de ce plan est renoncer а
attaquer les cases noires а l'aile-roi par la manoeuvre h3,Nh2g4} (16. h3 Nc5
17. Bc2 Be6 {[%csl Rc4]} 18. Rfd1) 16... Nf4 $1 {Un fort sacrifice de P qui
gagne le contrôle de la case "e5" pour y installer le N} 17. Bxf4 exf4 18. Qxf4
Ne5 $44 {[%csl Rc4,Rd3,Ge5] Installant un "monstre " en "e5"} 19. Be2 Be6 $36
20. f3 $6 {Assez passif et les Blancs ont renoncé а attaquer les cases noires
а l'aile-roi.} Rac8 {Les pièces noires sont trés actives} 21. Rfb1 {[%csl Rb7]
Il n'est pas facile pour les Blancs de trouver du contre-jeu} (21. Rab1) 21...
Re7 22. Kh1 Rd7 23. Rb4 a5 $1 24. Rbb1 (24. Rb5 Nxc4) 24... Qd8 25. Rb5 Nxc4 {
Regagne le P sacrifié mais transpose dans une finale de pièces lourdes plus
difficile а gagner} 26. Bxc4 Bxc4 27. Nxc4 Rxc4 28. Qd2 Rdc7 29. Rxa5 Rxc3 30.
h3 {[%csl Rg3] Après avoir joué f3, les cases noires sont trés affaiblies а
l'aile-roi} (30. Rd5 {[%csl Rd6]} Rc2 31. Qf4) 30... Rc2 31. Qg5 $6 {La finale
de R est un peu meilleure pour les Noirs} Qxg5 32. Rxg5 Rb2 {[%cal Gc7c2]} 33.
a4 Rcc2 34. Rg1 {[%csl Rg1] Le signe que la poistion blanche n'est pas trés
saine car l'activité est un facteur primordial en finale de R} Rd2 (34... Ra2
35. Rb5) 35. Kh2 b6 36. h4 Kg7 37. Rb5 Rxb5 38. axb5 d5 $1 (38... Rb2 $143 39.
Rd1 $132) 39. exd5 Rxd5 {[%csl Rb5]} 40. Rb1 Kf6 $15 {[%csl Rb1,Rb5,Gd5,Gf6,
Rh2] Les Noirs ont non seulement une R plus active mais le K sera plus
rapidement centralisé et la finale devient difficile pour les Blancs} 41. g4 h5
(41... Ke5 42. Rb4 f5 43. f4+ (43. Kg3) 43... Kd6 {[%cal Gd6c5]}) 42. Kg3 Ke6
43. Kf4 f6 44. Re1+ Kd7 {[%csl Ge8]} (44... Kd6 $5 45. Re8 {[%cal Ge8g8]} Rxb5
46. Kg3 (46. Rg8 g5+) 46... hxg4 47. fxg4 Rb3+ {[%csl Gb6,Rg3]}) 45. Rb1 Kd6
46. Ke4 Re5+ {[%cal Gd6c5]} 47. Kd4 g5 $1 48. hxg5 hxg4 49. fxg4 (49. g6 Rg5
50. fxg4 Rxg6 51. Rg1 Rg5 {[%csl Rb5,Rg4]}) 49... Rxg5 50. Ke4 $2 {Evite de
perdre un tempo sur l'échec} (50. Ke3 Rxg4 51. Rc1 {[%cal Gc1c6]}) 50... Rxg4+
51. Kf5 $2 Rc4 {[%csl Rf5][%cal Gc4c5] c'est un gain théorique selon les
tables de Nalimov car le P "b5" va tomber et le N blanc sera trop loin de
l'aile-dame après avoir perdu du temps pour prendre le P"f6"} 52. Kxf6 Kc5 {
[%cal Gc4b4]} 53. Ke5 Rb4 54. Rc1+ Rc4 (54... Kxb5 55. Kd5 Ka5 (55... Ka4 $2
56. Kc6) 56. Ra1+ Ra4 57. Rh1 b5 58. Kc5 Ra2 $19 {[%cal Ga5a4,Gb5b4,Ga2c2]})
55. Rb1 Rh4 56. Rc1+ (56. Rb2 Rb4) 56... Kxb5 57. Kd5 Ka5 {Malgré la cadence
rapide du tournoi, la technique des Noirs sera irréprochable} (57... Ka4 $2 58.
Kc6 $11) 58. Ra1+ Ra4 59. Rb1 b5 60. Kc5 Rc4+ 61. Kd5 Kb6 $1 (61... Rc2 $2 62.
Ra1+) 62. Rg1 Rc5+ 63. Kd4 b4 64. Rg8 {[%cal Gg8b8]} Rc1 65. Rg5 (65. Rb8+ Ka5
66. Ra8+ Kb5 67. Rb8+ Ka4 {[%cal Ga4b3]} 68. Ra8+ Kb3 $19) 65... Kc6 $1 66. Rg8
Kb5 67. Kd3 b3 68. Kd2 Rc2+ 69. Kd1 Kb4 70. Ra8 Rc5 (70... Kc3 71. Rc8+ Kb2)
71. Kd2 b2 72. Rb8+ Ka3 {[%cal Ga3b3,Gb3a2]} 0-1

[Event "EU-ch 12th"]
[Site "Aix les Bains"]
[Date "2011.03.24"]
[Round "3"]
[White "Zawadzka, Jolanta"]
[Black "Caruana, Fabiano"]
[Result "0-1"]
[ECO "B42"]
[WhiteElo "2386"]
[BlackElo "2716"]
[Annotator "Marchand,A/Primel,D"]
[PlyCount "80"]
[EventDate "2011.03.22"]
[EventType "swiss"]
[EventRounds "11"]
[EventCountry "FRA"]
[SourceTitle "CBM 142 Extra"]
[Source "ChessBase"]
[SourceDate "2011.06.27"]
[SourceVersion "1"]
[SourceVersionDate "2011.06.27"]
[SourceQuality "1"]
[TimeControl "40/5400+30:1800+30"]

1. e4 c5 2. Nf3 e6 3. d4 cxd4 4. Nxd4 a6 5. Nc3 Qc7 (5... b5 6. Bd3 Qb6 7. Nf3
{Caprio,G (2354)-Caruana,F (2727) ITA 71th Ch Perugia 2011 (11) 0-1}) 6. Bd3
Nf6 7. O-O d6 8. Kh1 (8. f4 $142) (8. Qe2 $142) 8... Nbd7 9. f4 Be7 (9... Nc5
10. Qe1 Be7 11. e5 Nfd7 12. Nf3 Nxd3 13. cxd3 O-O 14. d4 Nb6 15. Be3 Bd7 16.
Rc1 Qd8 17. Qg3 Nd5 18. Bd2 Nxc3 19. Rxc3 f5 20. d5 Bb5 21. Rfc1 dxe5 22. Rc7
exf4 23. Bxf4 Bf6 24. dxe6 {Felgaer,R (2607)-Hellsten,J (2574)/Santiago de
Chile 2006/CBM 111 ext/1/2-1/2}) 10. Qe2 (10. Qf3) (10. a4) (10. Qe1 {[%cal
Ge1g3]}) 10... Nc5 11. Bd2 O-O 12. Rae1 {Peut-être un peu prématuré car les
Blancs se privent du plan cd3 et Rac1 si les Noirs jouent Nc5d3} (12. Nb3 $142
$5 Nxd3 13. cxd3 {[%cal Ga1c1,Gc1c7]}) (12. b4 $5 {Nedev,T (2489)-Djuric,S 
(2487) Basel Hilton op 06th 2004 (6) 1/2}) 12... Nxd3 13. Qxd3 $146 (13. cxd3 {
Parma,B-Gligoric,S Belgrade 1964 (13) 1/2}) 13... b5 14. a3 Bb7 15. Qh3 $6 {
Il manque un Bd3 pour attaquer а l'aile-roi et le plan des Blancs semble un
peu douteux} Qc4 (15... Rac8) 16. Nb3 a5 $1 {[%csl Rb3][%cal Gb5b4]} 17. e5 Nd7
$1 (17... dxe5 $143 $6 18. fxe5 Nd7 19. Rf4 $132 {[%cal Gf4c4,Gf4h4,Gh4h7]})
18. exd6 Bxd6 $17 {[%csl Gb7,Gd6] La paire de B dans une position ouverte
donne déjà l'initiative aux Noirs} 19. Be3 b4 (19... Bxa3 $5 20. Nxb5 (20. bxa3
$2 Qxc3) 20... Bb4 {[%cal Ga5a4]}) 20. Nd2 Qc6 21. axb4 Bxb4 (21... axb4 22.
Nce4 {[%cal Ge4d6,Ge4g5]}) 22. Bd4 Qd6 23. Qe3 Rae8 $1 {[%cal Gf7f6,Ge6e5]} 24.
Nde4 Qc6 {[%csl Rg2,Rh1][%cal Gf7f5]} 25. Qg3 f6 26. Rd1 Kh8 27. Bg1 Nb6 {
[%cal Gb6c4,Gb6d5]} 28. Rf3 Nc4 {[%csl Rc3][%cal Gc4b2]} 29. b3 Nd6 30. Nxd6
Bxd6 31. Ne2 (31. Ne4 Bb4 (31... Qxe4 32. Rxd6 $11)) 31... e5 $1 {[%cal Gd6g3]}
32. c4 Rb8 (32... Bc7) 33. Qh3 a4 34. fxe5 $6 Bxe5 35. Nf4 {[%cal Gf4g6,Gg6h8]}
Qe4 36. Nd3 $2 (36. bxa4 $8) 36... Bc8 37. Nf2 Qc2 38. Qh5 axb3 39. Rdd3 b2 40.
Rd1 Bf5 0-1